[Event "XIX Najdorf Memorial 2019"]
[Site "Warsaw"]
[Date "2019.07.11"]
[Round "6.7"]
[White "Abdumalik, Zhansaya"]
[Black "Bernadskiy, Vitaliy"]
[Result "0-1"]
[ECO "B56"]
[WhiteElo "2458"]
[BlackElo "2594"]
[Annotator "ChessBase"]
[PlyCount "86"]
[EventDate "2019.07.06"]
[EventType "swiss"]
[EventCountry "POL"]
[SourceTitle "playchess.com"]
[Source "ChessBase"]
[SourceQuality "1"]
[TimeControl "40/5400+30:1800+30"]

1. e4 {[%emt 0:00:00]} c5 {[%emt 0:00:00]} 2. Nf3 {[%emt 0:00:00]} d6 {[%emt 0:00:00]} 3. d4 {[%emt 0:00:00]} cxd4 {[%emt 0:00:00]} 4. Nxd4 {[%emt 0:00:01]} Nf6 {[%emt 0:00:00]} 5. Nc3 {[%emt 0:00:13]} Nbd7 {[%emt 0:00:00]} 6. g3 {[%emt 0:01:21]} Nc5 {[%emt 0:07:56]} 7. Bg2 {[%emt 0:00:47]} e5 {[%emt 0:00:09]} 8. Nde2 {[%emt 0:01:05]} Be7 {[%emt 0:00:15]} 9. O-O {[%emt 0:01:00]} O-O {[%emt 0:00:11]} 10. h3 {[%emt 0:00:37]} h5 {[%emt 0:05:53]} 11. Be3 {[%emt 0:03:59]} b6 {[%emt 0:02:17]} 12. b4 {[%emt 0:05:59]} Ne6 {[%emt 0:05:19]} 13. Qd2 {[%emt 0:06:43]} Ba6 {[%emt 0:01:51]} 14. Rfd1 {[%emt 0:03:12]} Rc8 {[%emt 0:00:16]} 15. a4 {[%emt 0:06:44]} Rc4 {[%emt 0:07:41]} 16. a5 {[%emt 0:06:01]} Bb7 {[%emt 0:06:01]} 17. axb6 {[%emt 0:01:41]} axb6 {[%emt 0:00:06]} 18. Nd5 {[%emt 0:01:42]} b5 {[%emt 0:02:56]} 19. Ra7 {[%emt 0:09:03]} Bxd5 {[%emt 0:00:10]} 20. exd5 {[%emt 0:00:05]} Nc7 {[%emt 0:00:02]} 21. Rda1 {[%emt 0:05:54]} Qc8 {[%emt 0:01:44]} 22. Bb6 {[%emt 0:04:38]} Bd8 {[%emt 0:02:08]} 23. c3 {[%emt 0:04:34]} Ne4 {[%emt 0:06:50]} 24. Qd3 {[%emt 0:07:29]} Ng5 {[%emt 0:00:23]} 25. f4 {[%emt 0:01:15]} e4 {[%emt 0:07:52]} 26. Qd1 {[%emt 0:00:15]} Nf3+ {[%emt 0:01:55]} 27. Kh1 {[%emt 0:00:34]} Qf5 {[%emt 0:00:35]} 28. Bxc7 {[%emt 0:02:50]} Bxc7 {[%emt 0:00:20]} 29. Rb7 {[%emt 0:01:55]} Rc8 {[%emt 0:00:04]} 30. Rxb5 {[%emt 0:04:07]} Bd8 {[%emt 0:00:04]} 31. Qb3 {[%emt 0:03:37]} Kh7 {[%emt 0:05:09]} 32. Qb1 {[%emt 0:03:29]} Rxc3 {[%emt 0:06:55]} 33. Nxc3 {[%emt 0:01:25]} Rxc3 {[%emt 0:00:04]} 34. Qf1 {[%emt 0:02:40]} Rc2 {[%emt 0:03:42]} 35. Bxf3 {[%emt 0:02:22]} exf3 {[%emt 0:00:03]} 36. Rd1 {[%emt 0:05:26]} g6 {[%emt 0:01:29]} 37. Qxf3 {[%emt 0:01:31]} Qxh3+ {[%emt 0:00:09]} 38. Kg1 {[%emt 0:00:01]} Bh4 {[%emt 0:00:27]} 39. f5 {[%emt 0:01:51]} Qh2+ {[%emt 0:02:28]} 40. Kf1 {[%emt 0:00:00]} Bxg3 {[%emt 0:00:00]} 41. fxg6+ {[%emt 0:00:45]} Kh6 {[%emt 0:00:41]} 42. Qe3+ {[%emt 0:02:08]} Kg7 {[%emt 0:00:04]} 43. Qd4+ {[%emt 0:01:20]} Be5 {[%emt 0:00:05]} 0-1

[Event "XIX Najdorf Memorial 2019"]
[Site "Warsaw"]
[Date "2019.07.11"]
[Round "6.8"]
[White "Sedlak, Nikola"]
[Black "Goluch, Piotr"]
[Result "1-0"]
[ECO "A48"]
[WhiteElo "2586"]
[BlackElo "2386"]
[Annotator "ChessBase"]
[PlyCount "79"]
[EventDate "2019.07.06"]
[EventType "swiss"]
[EventCountry "POL"]
[SourceTitle "playchess.com"]
[Source "ChessBase"]
[SourceQuality "1"]
[TimeControl "40/5400+30:1800+30"]

1. d4 {[%emt 0:00:00]} Nf6 {[%emt 0:00:00]} 2. Nf3 {[%emt 0:00:14]} g6 {[%emt 0:00:00]} 3. Nbd2 {[%emt 0:00:33]} d5 {[%emt 0:00:41]} 4. e3 {[%emt 0:01:35]} Bg7 {[%emt 0:00:54]} 5. b4 {[%emt 0:00:15]} O-O {[%emt 0:01:47]} 6. Bb2 {[%emt 0:00:51]} a5 {[%emt 0:05:21]} 7. b5 {[%emt 0:00:32]} a4 {[%emt 0:01:07]} 8. Ba3 {[%emt 0:03:59]} c6 {[%emt 0:09:15]} 9. Rb1 {[%emt 0:03:38]} Re8 {[%emt 0:01:38]} 10. Be2 {[%emt 0:02:15]} Nbd7 {[%emt 0:01:16]} 11. O-O {[%emt 0:00:54]} e5 {[%emt 0:01:59]} 12. bxc6 {[%emt 0:02:15]} bxc6 {[%emt 0:00:04]} 13. Bd6 {[%emt 0:03:39]} Ng4 {[%emt 0:08:55]} 14. c4 {[%emt 0:07:38]} Ba6 {[%emt 0:06:27]} 15. h3 {[%emt 0:03:53]} Nh6 {[%emt 0:04:43]} 16. Nxe5 {[%emt 0:02:10]} Nxe5 {[%emt 0:00:27]} 17. Bxe5 {[%emt 0:00:13]} Bxe5 {[%emt 0:00:12]} 18. dxe5 {[%emt 0:00:09]} Rxe5 {[%emt 0:01:19]} 19. Nf3 {[%emt 0:00:09]} Re8 {[%emt 0:08:28]} 20. cxd5 {[%emt 0:01:38]} Bxe2 {[%emt 0:00:36]} 21. Qxe2 {[%emt 0:00:09]} Qxd5 {[%emt 0:01:38]} 22. Rfd1 {[%emt 0:01:02]} Qe4 {[%emt 0:02:09]} 23. Rbc1 {[%emt 0:09:07]} Nf5 {[%emt 0:00:43]} 24. Rc4 {[%emt 0:01:50]} Qe6 {[%emt 0:00:05]} 25. Qc2 {[%emt 0:01:07]} a3 {[%emt 0:01:33]} 26. Rxc6 {[%emt 0:03:10]} Rec8 {[%emt 0:02:18]} 27. Rd8+ {[%emt 0:01:40]} Rxd8 {[%emt 0:00:02]} 28. Rxe6 {[%emt 0:00:08]} fxe6 {[%emt 0:00:02]} 29. Ng5 {[%emt 0:02:24]} Ng7 {[%emt 0:15:07]} 30. Qc7 {[%emt 0:05:25]} Rf8 {[%emt 0:03:33]} 31. Qe7 {[%emt 0:03:05]} Rad8 {[%emt 0:04:33]} 32. Ne4 {[%emt 0:00:38]} Ra8 {[%emt 0:00:37]} 33. g4 {[%emt 0:00:28]} Kh8 {[%emt 0:04:31]} 34. Kg2 {[%emt 0:01:37]} Kg8 {[%emt 0:06:46]} 35. Qh4 {[%emt 0:00:32]} Ne8 {[%emt 0:05:54]} 36. Qe7 {[%emt 0:01:17]} Ng7 {[%emt 0:00:15]} 37. Nf6+ {[%emt 0:04:14]} Kh8 {[%emt 0:00:03]} 38. Nd7 {[%emt 0:03:18]} Rfe8 {[%emt 0:00:12]} 39. Qh4 {[%emt 0:00:26]} h5 {[%emt 0:03:20]} 40. Qg5 {[%emt 0:00:00]} 1-0

[Event "XIX Najdorf Memorial 2019"]
[Site "Warsaw"]
[Date "2019.07.11"]
[Round "6.8"]
[White "Budrewicz, Krzysztof"]
[Black "Nguyen, Piotr"]
[Result "1-0"]
[ECO "A84"]
[WhiteElo "2188"]
[BlackElo "2420"]
[Annotator "NA"]
[PlyCount "87"]
[EventDate "2019.07.06"]
[EventType "swiss"]
[EventCountry "POL"]
[SourceTitle "playchess.com"]
[Source "ChessBase"]
[SourceQuality "1"]
[TimeControl "40/5400+30:1800+30"]

1. d4 f5 {[%emt 0:00:00]} 2. c4 {[%emt 0:00:00]} Nf6 {[%emt 0:00:00]} 3. Nf3 {[%emt 0:00:09]} g6 {[%emt 0:00:00]} 4. e3 {[%emt 0:00:53]} Bg7 {[%emt 0:00:23]} 5. b4 {[%emt 0:00:19]} O-O {[%emt 0:00:22]} 6. Bb2 {[%emt 0:00:04]} e6 {[%emt 0:04:21]} 7. Be2 {[%emt 0:01:37]} b6 {[%emt 0:01:39]} 8. O-O {[%emt 0:01:05]} Bb7 {[%emt 0:00:13]} 9. Nc3 {[%emt 0:00:49]} Qe7 {[%emt 0:04:25]} 10. Qb3 {[%emt 0:05:49]} d6 {[%emt 0:01:23]} 11. a4 {[%emt 0:00:28]} c5 {[%emt 0:20:40]} 12. bxc5 {[%emt 0:11:25]} bxc5 {[%emt 0:00:19]} 13. a5 {[%emt 0:09:33]} Na6 {[%emt 0:04:56]} 14. Rfd1 {[%emt 0:02:28]} Rab8 {[%emt 0:09:10]} 15. Nb5 {[%emt 0:03:02]} Ne4 {[%emt 0:09:35]} 16. Qa3 {[%emt 0:05:14]} Nb4 {[%emt 0:04:50]} 17. Rac1 {[%emt 0:00:34]} a6 {[%emt 0:02:07]} 18. Nc3 {[%emt 0:00:17]} Ng5 {[%emt 0:05:14]} 19. d5 {[%emt 0:05:25]} exd5 {[%emt 0:03:53]} 20. cxd5 {[%emt 0:03:35]} f4 {[%emt 0:00:26]} 21. e4 {[%emt 0:24:51]} Nxe4 {[%emt 0:02:13]} 22. Nxe4 {[%emt 0:00:06]} Bxb2 {[%emt 0:01:08]} 23. Qxb2 {[%emt 0:00:09]} Qxe4 {[%emt 0:00:05]} 24. Bc4 {[%emt 0:04:35]} Qf5 {[%emt 0:03:06]} 25. Qd2 {[%emt 0:03:34]} Rbe8 {[%emt 0:02:39]} 26. Nd4 {[%emt 0:00:42]} Qg5 {[%emt 0:04:15]} 27. Nc6 {[%emt 0:01:46]} Bc8 {[%emt 0:04:59]} 28. Nxb4 {[%emt 0:00:27]} cxb4 {[%emt 0:00:03]} 29. Bf1 {[%emt 0:00:34]} Re5 {[%emt 0:00:45]} 30. Qxb4 {[%emt 0:00:59]} Bg4 {[%emt 0:02:18]} 31. Re1 {[%emt 0:02:41]} Bf3 {[%emt 0:02:53]} 32. Qxd6 {[%emt 0:01:57]} Ref5 {[%emt 0:03:06]} 33. Kh1 {[%emt 0:05:24]} Bxd5 {[%emt 0:00:30]} 34. Qxa6 {[%emt 0:00:17]} Qh4 {[%emt 0:01:48]} 35. Bc4 {[%emt 0:01:30]} Bxc4 {[%emt 0:02:55]} 36. Qxc4+ {[%emt 0:00:06]} Kg7 {[%emt 0:00:23]} 37. Qd4+ {[%emt 0:00:22]} Kh6 {[%emt 0:00:47]} 38. Rc7 {[%emt 0:01:09]} Kg5 {[%emt 0:00:31]} 39. a6 {[%emt 0:00:39]} h6 {[%emt 0:00:30]} 40. a7 {[%emt 0:00:00]} f3 {[%emt 0:00:00]} 41. Qxh4+ {[%emt 0:02:05]} Kxh4 {[%emt 0:00:37]} 42. Re4+ {[%emt 0:00:19]} Kg5 {[%emt 0:03:43]} 43. h4+ {[%emt 0:00:05]} Kf6 {[%emt 0:00:11]} 44. g4 {[%emt 0:00:05]} 1-0

[Event "XIX Najdorf Memorial 2019"]
[Site "Warsaw"]
[Date "2019.07.11"]
[Round "6.9"]
[White "Romanishin, Oleg M"]
[Black "Yuffa, Daniil"]
[Result "1-0"]
[ECO "D15"]
[WhiteElo "2443"]
[BlackElo "2582"]
[Annotator "ChessBase"]
[PlyCount "77"]
[EventDate "2019.07.06"]
[EventType "swiss"]
[EventCountry "POL"]
[SourceTitle "playchess.com"]
[Source "ChessBase"]
[SourceQuality "1"]
[TimeControl "40/5400+30:1800+30"]

1. d4 {[%emt 0:05:33]} d5 {[%emt 0:00:00]} 2. Nf3 {[%emt 0:00:05]} Nf6 {[%emt 0:00:01]} 3. c4 {[%emt 0:00:05]} c6 {[%emt 0:00:13]} 4. Nc3 {[%emt 0:01:43]} a6 {[%emt 0:00:09]} 5. g3 {[%emt 0:00:10]} dxc4 {[%emt 0:00:06]} 6. Bg2 {[%emt 0:02:15]} g6 {[%emt 0:03:39]} 7. Ne5 {[%emt 0:26:05]} Be6 {[%emt 0:00:44]} 8. e4 {[%emt 0:00:10]} Nbd7 {[%emt 0:07:55]} 9. Nf3 {[%emt 0:03:12]} h6 {[%emt 0:10:24]} 10. O-O {[%emt 0:02:13]} Bg7 {[%emt 0:00:49]} 11. h3 {[%emt 0:04:16]} Qb6 {[%emt 0:14:04]} 12. Qe2 {[%emt 0:04:05]} Rd8 {[%emt 0:03:09]} 13. Be3 {[%emt 0:00:15]} Qa5 {[%emt 0:01:16]} 14. a4 {[%emt 0:05:32]} Qh5 {[%emt 0:16:45]} 15. e5 {[%emt 0:01:13]} Bxh3 {[%emt 0:02:59]} 16. exf6 {[%emt 0:00:09]} Nxf6 {[%emt 0:00:09]} 17. Ne5 {[%emt 0:02:10]} Qxe2 {[%emt 0:02:08]} 18. Nxe2 {[%emt 0:00:29]} Bf5 {[%emt 0:00:04]} 19. Rfc1 {[%emt 0:03:58]} Nd5 {[%emt 0:00:09]} 20. Nxc4 {[%emt 0:00:51]} h5 {[%emt 0:02:20]} 21. Na5 {[%emt 0:17:35]} Bc8 {[%emt 0:00:07]} 22. Ra3 {[%emt 0:01:04]} h4 {[%emt 0:00:28]} 23. gxh4 {[%emt 0:00:22]} Rxh4 {[%emt 0:01:27]} 24. Rb3 {[%emt 0:00:13]} Nxe3 {[%emt 0:03:10]} 25. fxe3 {[%emt 0:00:09]} Bh6 {[%emt 0:00:03]} 26. Kf2 {[%emt 0:02:50]} Rd6 {[%emt 0:00:03]} 27. Rh1 {[%emt 0:02:14]} Rf6+ {[%emt 0:00:36]} 28. Ke1 {[%emt 0:00:48]} Rxh1+ {[%emt 0:07:50]} 29. Bxh1 {[%emt 0:00:04]} Re6 {[%emt 0:00:17]} 30. Nxb7 {[%emt 0:01:29]} Bxb7 {[%emt 0:00:48]} 31. Rxb7 {[%emt 0:00:22]} Bxe3 {[%emt 0:00:05]} 32. Rc7 {[%emt 0:07:09]} Bxd4 {[%emt 0:01:40]} 33. Rxc6 {[%emt 0:00:06]} Re5 {[%emt 0:03:25]} 34. b4 {[%emt 0:00:25]} Bb2 {[%emt 0:02:05]} 35. Rc4 {[%emt 0:02:25]} Kd8 {[%emt 0:00:26]} 36. Kd2 {[%emt 0:01:16]} f5 {[%emt 0:00:33]} 37. Nf4 {[%emt 0:00:37]} Ba3 {[%emt 0:01:24]} 38. Nd3 {[%emt 0:01:11]} Re6 {[%emt 0:00:03]} 39. Rc3 {[%emt 0:00:05]} 1-0

[Event "XIX Najdorf Memorial 2019"]
[Site "Warsaw"]
[Date "2019.07.11"]
[Round "6.9"]
[White "Menezes, Christoph"]
[Black "Bus, Konrad"]
[Result "1-0"]
[ECO "A13"]
[WhiteElo "2413"]
[BlackElo "2264"]
[Annotator "NA"]
[PlyCount "101"]
[EventDate "2019.07.06"]
[EventType "swiss"]
[EventCountry "POL"]
[SourceTitle "playchess.com"]
[Source "ChessBase"]
[SourceQuality "1"]
[TimeControl "40/5400+30:1800+30"]

1. c4 {[%emt 0:00:00]} e6 {[%emt 0:00:04]} 2. Nf3 {[%emt 0:00:40]} d5 {[%emt 0:00:24]} 3. e3 {[%emt 0:01:13]} Nf6 {[%emt 0:02:29]} 4. Nc3 {[%emt 0:01:10]} dxc4 {[%emt 0:03:24]} 5. Bxc4 {[%emt 0:00:38]} c5 {[%emt 0:01:49]} 6. O-O {[%emt 0:01:38]} a6 {[%emt 0:00:58]} 7. d4 {[%emt 0:04:42]} b5 {[%emt 0:02:24]} 8. Bb3 {[%emt 0:01:31]} Bb7 {[%emt 0:01:19]} 9. e4 {[%emt 0:00:35]} Be7 {[%emt 0:13:20]} 10. e5 {[%emt 0:05:41]} Nd5 {[%emt 0:01:56]} 11. Nxd5 {[%emt 0:02:02]} Bxd5 {[%emt 0:00:36]} 12. dxc5 {[%emt 0:00:49]} Bxb3 {[%emt 0:06:32]} 13. Qxb3 {[%emt 0:05:22]} Bxc5 {[%emt 0:01:51]} 14. Ng5 {[%emt 0:02:27]} Nc6 {[%emt 0:16:49]} 15. Nxf7 {[%emt 0:10:09]} Nd4 {[%emt 0:01:47]} 16. Nxd8 {[%emt 0:01:14]} Nxb3 {[%emt 0:00:06]} 17. axb3 {[%emt 0:01:33]} Kxd8 {[%emt 0:07:23]} 18. Bg5+ {[%emt 0:05:48]} Be7 {[%emt 0:07:02]} 19. Rfd1+ {[%emt 0:02:45]} Ke8 {[%emt 0:00:02]} 20. Be3 {[%emt 0:00:15]} Kf7 {[%emt 0:03:00]} 21. Rd7 {[%emt 0:01:18]} Rhd8 {[%emt 0:00:36]} 22. Rb7 {[%emt 0:04:31]} Rdb8 {[%emt 0:07:53]} 23. Rxb8 {[%emt 0:03:06]} Rxb8 {[%emt 0:00:11]} 24. Rxa6 {[%emt 0:00:07]} Rd8 {[%emt 0:00:58]} 25. Kf1 {[%emt 0:06:09]} Rd3 {[%emt 0:03:08]} 26. Ra7 {[%emt 0:01:31]} Kf8 {[%emt 0:00:37]} 27. Rb7 {[%emt 0:04:28]} Rxb3 {[%emt 0:00:36]} 28. Bd4 {[%emt 0:00:49]} Rd3 {[%emt 0:02:52]} 29. Bc3 {[%emt 0:01:57]} Rd5 {[%emt 0:00:16]} 30. Ke2 {[%emt 0:03:51]} h5 {[%emt 0:02:33]} 31. Kf3 {[%emt 0:05:17]} g6 {[%emt 0:04:42]} 32. Ke4 {[%emt 0:00:32]} Ke8 {[%emt 0:01:10]} 33. Ba5 {[%emt 0:04:44]} Kf8 {[%emt 0:01:53]} 34. Bc3 {[%emt 0:09:00]} Ke8 {[%emt 0:00:16]} 35. g3 {[%emt 0:01:10]} Kf8 {[%emt 0:01:22]} 36. h3 {[%emt 0:01:50]} Ke8 {[%emt 0:01:22]} 37. f4 {[%emt 0:00:49]} Kf8 {[%emt 0:00:57]} 38. g4 {[%emt 0:00:18]} Rc5 {[%emt 0:01:55]} 39. Bd4 {[%emt 0:03:22]} Rc2 {[%emt 0:02:09]} 40. f5 {[%emt 0:00:00]} hxg4 {[%emt 0:00:00]} 41. f6 {[%emt 0:16:12]} Bxf6 {[%emt 0:09:23]} 42. exf6 {[%emt 0:00:13]} gxh3 {[%emt 0:00:10]} 43. Rh7 {[%emt 0:02:12]} h2 {[%emt 0:03:11]} 44. Kd3 {[%emt 0:06:01]} Rg2 {[%emt 0:01:34]} 45. Be5 {[%emt 0:00:14]} Rg5 {[%emt 0:00:51]} 46. Kd4 {[%emt 0:00:47]} Rh5 {[%emt 0:03:31]} 47. Rxh5 {[%emt 0:00:10]} gxh5 {[%emt 0:00:02]} 48. Bxh2 {[%emt 0:00:07]} Kf7 {[%emt 0:00:13]} 49. Ke5 {[%emt 0:00:04]} h4 {[%emt 0:00:17]} 50. Bf4 {[%emt 0:00:22]} h3 {[%emt 0:00:09]} 51. Bh2 {[%emt 0:00:03]} 1-0

[Event "XIX Najdorf Memorial 2019"]
[Site "Warsaw"]
[Date "2019.07.11"]
[Round "6.10"]
[White "Roseneck, Jonas"]
[Black "Kanarek, Marcel"]
[Result "0-1"]
[ECO "B90"]
[WhiteElo "2398"]
[BlackElo "2493"]
[Annotator "ChessBase"]
[PlyCount "80"]
[EventDate "2019.07.06"]
[EventType "swiss"]
[EventCountry "POL"]
[SourceTitle "playchess.com"]
[Source "ChessBase"]
[SourceQuality "1"]
[TimeControl "40/5400+30:1800+30"]

1. e4 {[%emt 0:00:00]} c5 {[%emt 0:00:00]} 2. Nf3 {[%emt 0:00:00]} d6 {[%emt 0:00:00]} 3. d4 {[%emt 0:00:00]} cxd4 {[%emt 0:00:00]} 4. Nxd4 {[%emt 0:00:00]} Nf6 {[%emt 0:00:00]} 5. Nc3 {[%emt 0:00:00]} a6 {[%emt 0:00:00]} 6. Be3 {[%emt 0:00:00]} e5 {[%emt 0:00:00]} 7. Nb3 {[%emt 0:00:00]} Be6 {[%emt 0:00:00]} 8. f3 {[%emt 0:00:00]} Be7 {[%emt 0:00:13]} 9. Qd2 {[%emt 0:00:02]} O-O {[%emt 0:00:22]} 10. O-O-O {[%emt 0:00:04]} Nbd7 {[%emt 0:00:30]} 11. g4 {[%emt 0:00:03]} b5 {[%emt 0:00:30]} 12. g5 {[%emt 0:00:11]} Nh5 {[%emt 0:00:17]} 13. Kb1 {[%emt 0:00:04]} Nb6 {[%emt 0:02:22]} 14. Na5 {[%emt 0:01:24]} Qc7 {[%emt 0:02:47]} 15. Rg1 {[%emt 0:01:14]} d5 {[%emt 0:13:22]} 16. exd5 {[%emt 0:31:37]} Nxd5 {[%emt 0:01:01]} 17. Nc6 {[%emt 0:08:28]} Nxe3 {[%emt 0:34:06]} 18. Nxe7+ {[%emt 0:00:33]} Qxe7 {[%emt 0:00:08]} 19. Qxe3 {[%emt 0:00:04]} Rfd8 {[%emt 0:00:26]} 20. Bd3 {[%emt 0:08:03]} b4 {[%emt 0:00:56]} 21. Ne4 {[%emt 0:07:46]} Rd4 {[%emt 0:14:18]} 22. Ng3 {[%emt 0:08:42]} Nxg3 {[%emt 0:09:07]} 23. hxg3 {[%emt 0:00:15]} Qd6 {[%emt 0:17:30]} 24. Rde1 {[%emt 0:05:36]} Re8 {[%emt 0:01:03]} 25. Qe2 {[%emt 0:08:10]} g6 {[%emt 0:01:55]} 26. g4 {[%emt 0:04:07]} e4 {[%emt 0:00:47]} 27. fxe4 {[%emt 0:06:53]} Qe5 {[%emt 0:00:02]} 28. Qe3 {[%emt 0:00:50]} a5 {[%emt 0:01:06]} 29. Rg2 {[%emt 0:02:20]} a4 {[%emt 0:00:42]} 30. Rh1 {[%emt 0:01:30]} a3 {[%emt 0:00:43]} 31. c3 {[%emt 0:01:24]} bxc3 {[%emt 0:00:24]} 32. b3 {[%emt 0:00:00]} c2+ {[%emt 0:00:30]} 33. Rxc2 {[%emt 0:00:36]} Red8 {[%emt 0:00:35]} 34. Be2 {[%emt 0:04:34]} Rxe4 {[%emt 0:00:18]} 35. Qh3 {[%emt 0:00:01]} Qg7 {[%emt 0:00:58]} 36. Rf1 {[%emt 0:02:13]} Qe5 {[%emt 0:00:20]} 37. Rh1 {[%emt 0:00:00]} h5 {[%emt 0:00:17]} 38. gxh6 {[%emt 0:00:03]} Kh7 {[%emt 0:00:35]} 39. Qf3 {[%emt 0:01:36]} Re3 {[%emt 0:00:19]} 40. Qf2 {[%emt 0:00:00]} Bxb3 {[%emt 0:00:00]} 0-1

[Event "XIX Najdorf Memorial 2019"]
[Site "Warsaw"]
[Date "2019.07.11"]
[Round "6.10"]
[White "Krasiewicz, Robert"]
[Black "Fus, Jakub"]
[Result "0-1"]
[ECO "A13"]
[WhiteElo "2017"]
[BlackElo "2341"]
[Annotator "NA"]
[PlyCount "76"]
[EventDate "2019.07.06"]
[EventType "swiss"]
[EventCountry "POL"]
[SourceTitle "playchess.com"]
[Source "ChessBase"]
[SourceQuality "1"]
[TimeControl "40/5400+30:1800+30"]

1. c4 {[%emt 0:00:00]} Nf6 {[%emt 0:00:00]} 2. g3 {[%emt 0:00:00]} e6 {[%emt 0:00:13]} 3. Bg2 {[%emt 0:00:00]} d5 {[%emt 0:00:20]} 4. Nf3 {[%emt 0:00:00]} dxc4 {[%emt 0:00:30]} 5. Qa4+ {[%emt 0:00:00]} c6 {[%emt 0:00:18]} 6. Qxc4 {[%emt 0:00:19]} b5 {[%emt 0:00:37]} 7. Qb3 {[%emt 0:01:45]} Bb7 {[%emt 0:00:39]} 8. d4 {[%emt 0:00:41]} Nbd7 {[%emt 0:00:54]} 9. a4 {[%emt 0:01:27]} a6 {[%emt 0:02:14]} 10. O-O {[%emt 0:00:54]} Be7 {[%emt 0:05:48]} 11. Rd1 {[%emt 0:04:29]} O-O {[%emt 0:04:04]} 12. e3 {[%emt 0:13:59]} Qb6 {[%emt 0:03:45]} 13. Nc3 {[%emt 0:00:43]} b4 {[%emt 0:09:13]} 14. a5 {[%emt 0:11:44]} Qc7 {[%emt 0:00:48]} 15. Ne2 {[%emt 0:01:31]} c5 {[%emt 0:00:46]} 16. dxc5 {[%emt 0:00:53]} Rab8 {[%emt 0:09:50]} 17. Nfd4 {[%emt 0:17:38]} Nxc5 {[%emt 0:01:48]} 18. Qc4 {[%emt 0:00:40]} Bxg2 {[%emt 0:02:22]} 19. Kxg2 {[%emt 0:00:03]} Qb7+ {[%emt 0:00:19]} 20. f3 {[%emt 0:03:34]} Rfc8 {[%emt 0:13:25]} 21. Bd2 {[%emt 0:00:52]} e5 {[%emt 0:01:00]} 22. Nf5 {[%emt 0:01:56]} e4 {[%emt 0:06:21]} 23. f4 {[%emt 0:01:19]} Bf8 {[%emt 0:01:15]} 24. h3 {[%emt 0:08:15]} Nd3 {[%emt 0:03:30]} 25. Qb3 {[%emt 0:00:08]} Qd5 {[%emt 0:04:23]} 26. Qxd5 {[%emt 0:05:46]} Nxd5 {[%emt 0:00:48]} 27. b3 {[%emt 0:00:34]} Nc3 {[%emt 0:01:15]} 28. Bxc3 {[%emt 0:01:34]} bxc3 {[%emt 0:00:17]} 29. Nfd4 {[%emt 0:00:15]} Bc5 {[%emt 0:00:59]} 30. Nc1 {[%emt 0:02:56]} Bxd4 {[%emt 0:00:36]} 31. exd4 {[%emt 0:00:20]} c2 {[%emt 0:03:43]} 32. Rd2 {[%emt 0:02:28]} Rc3 {[%emt 0:00:55]} 33. Kf1 {[%emt 0:01:03]} f5 {[%emt 0:00:38]} 34. Ke2 {[%emt 0:00:26]} Kf7 {[%emt 0:00:36]} 35. Kf1 {[%emt 0:04:34]} Rbc8 {[%emt 0:01:22]} 36. Rh2 {[%emt 0:03:13]} Ke6 {[%emt 0:01:02]} 37. Ke2 {[%emt 0:01:23]} Nxc1+ {[%emt 0:03:04]} 38. Rxc1 {[%emt 0:00:05]} Rxb3 {[%emt 0:00:04]} 0-1

[Event "XIX Najdorf Memorial 2019"]
[Site "Warsaw"]
[Date "2019.07.11"]
[Round "6.11"]
[White "Popovic, Dusan"]
[Black "Mosesov, Danylo"]
[Result "1/2-1/2"]
[ECO "A47"]
[WhiteElo "2487"]
[BlackElo "2353"]
[Annotator "ChessBase"]
[PlyCount "41"]
[EventDate "2019.07.06"]
[EventType "swiss"]
[EventCountry "POL"]
[SourceTitle "playchess.com"]
[Source "ChessBase"]
[SourceQuality "1"]
[TimeControl "40/5400+30:1800+30"]

1. d4 {[%emt 0:00:00]} Nf6 {[%emt 0:01:46]} 2. Nf3 {[%emt 0:00:00]} b6 {[%emt 0:00:02]} 3. Bf4 {[%emt 0:00:03]} Bb7 {[%emt 0:00:04]} 4. e3 {[%emt 0:00:13]} g6 {[%emt 0:01:52]} 5. h3 {[%emt 0:00:20]} Bg7 {[%emt 0:00:05]} 6. Be2 {[%emt 0:00:04]} O-O {[%emt 0:00:14]} 7. O-O {[%emt 0:01:28]} d6 {[%emt 0:00:26]} 8. a4 {[%emt 0:01:20]} Nfd7 {[%emt 0:03:22]} 9. a5 {[%emt 0:01:00]} bxa5 {[%emt 0:01:12]} 10. Nbd2 {[%emt 0:18:27]} c5 {[%emt 0:07:08]} 11. Nb3 {[%emt 0:07:43]} a4 {[%emt 0:02:51]} 12. Rxa4 {[%emt 0:00:43]} Nb6 {[%emt 0:00:13]} 13. Ra1 {[%emt 0:01:46]} cxd4 {[%emt 0:00:39]} 14. exd4 {[%emt 0:00:47]} Bd5 {[%emt 0:01:46]} 15. Na5 {[%emt 0:15:33]} Nc6 {[%emt 0:02:39]} 16. Nxc6 {[%emt 0:00:15]} Bxc6 {[%emt 0:00:04]} 17. c4 {[%emt 0:00:11]} a5 {[%emt 0:03:24]} 18. b3 {[%emt 0:08:43]} Re8 {[%emt 0:05:30]} 19. Ra2 {[%emt 0:02:25]} a4 {[%emt 0:12:23]} 20. b4 {[%emt 0:04:01]} Rc8 {[%emt 0:02:32]} 21. d5 {[%emt 0:18:35]} 1/2-1/2

[Event "XIX Najdorf Memorial 2019"]
[Site "Warsaw"]
[Date "2019.07.11"]
[Round "6.11"]
[White "Dzida, Kamil"]
[Black "Paszewski, Mateusz"]
[Result "0-1"]
[ECO "B35"]
[WhiteElo "1987"]
[BlackElo "2324"]
[Annotator "NA"]
[PlyCount "60"]
[EventDate "2019.07.06"]
[EventType "swiss"]
[EventCountry "POL"]
[SourceTitle "playchess.com"]
[Source "ChessBase"]
[SourceQuality "1"]
[TimeControl "40/5400+30:1800+30"]

1. e4 {[%emt 0:00:00]} c5 {[%emt 0:03:48]} 2. Nf3 {[%emt 0:00:00]} Nc6 {[%emt 0:00:04]} 3. d4 {[%emt 0:00:00]} cxd4 {[%emt 0:00:03]} 4. Nxd4 {[%emt 0:00:04]} g6 {[%emt 0:00:03]} 5. Nc3 {[%emt 0:00:18]} Bg7 {[%emt 0:00:03]} 6. Be3 {[%emt 0:00:08]} Nf6 {[%emt 0:00:05]} 7. Bc4 {[%emt 0:02:09]} O-O {[%emt 0:00:22]} 8. Bb3 {[%emt 0:00:04]} a6 {[%emt 0:04:55]} 9. f3 {[%emt 0:07:53]} Qc7 {[%emt 0:00:07]} 10. Qd2 {[%emt 0:01:12]} b5 {[%emt 0:00:15]} 11. O-O-O {[%emt 0:01:01]} Bb7 {[%emt 0:00:08]} 12. h4 {[%emt 0:03:23]} h5 {[%emt 0:00:22]} 13. g4 {[%emt 0:07:47]} e6 {[%emt 0:00:18]} 14. g5 {[%emt 0:13:23]} Ne8 {[%emt 0:04:52]} 15. Kb1 {[%emt 0:02:31]} Nxd4 {[%emt 0:18:12]} 16. Bxd4 {[%emt 0:00:04]} Bxd4 {[%emt 0:00:04]} 17. Qxd4 {[%emt 0:00:05]} Bc6 {[%emt 0:00:04]} 18. Rhf1 {[%emt 0:11:08]} a5 {[%emt 0:24:58]} 19. a4 {[%emt 0:02:43]} bxa4 {[%emt 0:00:54]} 20. Nxa4 {[%emt 0:00:26]} Rb8 {[%emt 0:05:23]} 21. Nc5 {[%emt 0:05:27]} Rb4 {[%emt 0:03:12]} 22. Qc3 {[%emt 0:00:29]} Qa7 {[%emt 0:02:43]} 23. Rd4 {[%emt 0:09:28]} Nc7 {[%emt 0:03:48]} 24. Rxd7 {[%emt 0:09:20]} Bxd7 {[%emt 0:06:01]} 25. Nxd7 {[%emt 0:00:09]} Nb5 {[%emt 0:00:06]} 26. Nf6+ {[%emt 0:00:44]} Kh8 {[%emt 0:00:02]} 27. Qc6 {[%emt 0:02:00]} Rd8 {[%emt 0:08:43]} 28. Nd5 {[%emt 0:09:03]} Nd4 {[%emt 0:03:28]} 29. Nxb4 {[%emt 0:02:20]} Nxc6 {[%emt 0:00:56]} 30. Nxc6 {[%emt 0:00:05]} Qa6 {[%emt 0:00:03]} 0-1